[Event "Titled Tuesday Blitz February 14 Early 2023"]
[White "Avazkhonov, Alikhon"]
[Black "Colijn, Stefan"]
[WhiteFideId "14208504"]
[BlackFideId "1016199"]
[WhiteElo "1538"]
[BlackElo "2293"]
[Result "0-1"]
[Round "08"]
[TimeControl "180+2"]
[Date "2023.02.14"]
[WhiteClock "0:00:22"]
[BlackClock "0:00:05"]

1. d4 {[%clk 0:03:00]}  Nf6 {[%clk 0:02:53]} 2. c4 {[%clk 0:03:01]}  e6 {[%clk 0:02:53]} 3. Nc3 {[%clk 0:03:01]}  Bb4 {[%clk 0:02:52]} 4. e3 {[%clk 0:02:53]}  Bxc3+ {[%clk 0:02:49]} 5. bxc3 {[%clk 0:02:52]}  d6 {[%clk 0:02:50]} 6. Bd3 {[%clk 0:02:50]}  O-O {[%clk 0:02:50]} 7. Nf3 {[%clk 0:02:49]}  c5 {[%clk 0:02:49]} 8. O-O {[%clk 0:02:49]}  b6 {[%clk 0:02:49]} 9. e4 {[%clk 0:02:47]}  Nc6 {[%clk 0:02:32]} 10. Re1 {[%clk 0:02:47]}  e5 {[%clk 0:02:31]} 11. Nd2 {[%clk 0:02:40]}  cxd4 {[%clk 0:02:19]} 12. cxd4 {[%clk 0:02:41]}  Nxd4 {[%clk 0:02:20]} 13. Nf1 {[%clk 0:02:33]}  Be6 {[%clk 0:02:19]} 14. Ne3 {[%clk 0:02:32]}  Nd7 {[%clk 0:02:19]} 15. Bb2 {[%clk 0:02:30]}  Nc6 {[%clk 0:02:18]} 16. Rc1 {[%clk 0:02:21]}  Rc8 {[%clk 0:02:15]} 17. Bb1 {[%clk 0:02:20]}  Nc5 {[%clk 0:02:08]} 18. Nd5 {[%clk 0:02:20]}  Bd7 {[%clk 0:01:51]} 19. f4 {[%clk 0:02:15]}  Ne6 {[%clk 0:01:48]} 20. f5 {[%clk 0:02:14]}  Ned4 {[%clk 0:01:48]} 21. f6 {[%clk 0:02:13]}  Be6 {[%clk 0:00:39]} 22. Qd2 {[%clk 0:01:59]}  Kh8 {[%clk 0:00:12]} 23. Rf1 {[%clk 0:01:40]}  Rg8 {[%clk 0:00:09]} 24. Rc3 {[%clk 0:01:38]}  gxf6 {[%clk 0:00:08]} 25. Nxf6 {[%clk 0:01:39]}  Rg6 {[%clk 0:00:08]} 26. Nd5 {[%clk 0:01:21]}  Qg5 {[%clk 0:00:08]} 27. Qf2 {[%clk 0:01:12]}  Rcg8 {[%clk 0:00:05]} 28. Rg3 {[%clk 0:01:12]}  Qh4 {[%clk 0:00:04]} 29. Nf6 {[%clk 0:01:00]}  Rxg3 {[%clk 0:00:03]} 30. Nxg8 {[%clk 0:00:32]}  Nf3+ {[%clk 0:00:03]} 31. Qxf3 {[%clk 0:00:29]}  Rxf3 {[%clk 0:00:04]} 32. Rxf3 {[%clk 0:00:28]}  Kxg8 {[%clk 0:00:04]} 33. Rg3+ {[%clk 0:00:26]}  Kf8 {[%clk 0:00:05]} 34. Ba3 {[%clk 0:00:27]}  Ke7 {[%clk 0:00:05]} 35. Bd3 {[%clk 0:00:25]}  Nd4 {[%clk 0:00:05]} 36. Re3 {[%clk 0:00:22]}  Qf4 {[%clk 0:00:05]} 37. Re1 {[%clk 0:00:22]}  Qd2 {[%clk 0:00:05]} 0-1


[Site "https://www.chess.com"]

[Event "Titled Tuesday Blitz February 14 Early 2023"]
[White "Hrabinska, Myroslava"]
[Black "Harriott, Tyrell"]
[WhiteFideId "14109190"]
[BlackFideId "2086484"]
[WhiteElo "2210"]
[BlackElo "1889"]
[Result "0-1"]
[Round "08"]
[TimeControl "180+2"]
[Date "2023.02.14"]
[WhiteClock "0:00:01"]
[BlackClock "0:00:10"]

1. e4 {[%clk 0:02:52]}  d6 {[%clk 0:02:53]} 2. d4 {[%clk 0:02:52]}  Nf6 {[%clk 0:02:54]} 3. Nc3 {[%clk 0:02:51]}  Nbd7 {[%clk 0:02:53]} 4. Bg5 {[%clk 0:02:49]}  e5 {[%clk 0:02:53]} 5. Nf3 {[%clk 0:02:45]}  Be7 {[%clk 0:02:53]} 6. Qd2 {[%clk 0:02:32]}  c6 {[%clk 0:02:53]} 7. a4 {[%clk 0:02:05]}  O-O {[%clk 0:02:49]} 8. Bc4 {[%clk 0:02:02]}  Qc7 {[%clk 0:02:45]} 9. O-O {[%clk 0:02:01]}  Re8 {[%clk 0:02:45]} 10. h3 {[%clk 0:01:57]}  Nf8 {[%clk 0:02:45]} 11. Rad1 {[%clk 0:01:34]}  Ng6 {[%clk 0:02:46]} 12. Rfe1 {[%clk 0:01:23]}  Nh5 {[%clk 0:02:46]} 13. Bxe7 {[%clk 0:01:14]}  Qxe7 {[%clk 0:02:45]} 14. Ne2 {[%clk 0:01:09]}  Nhf4 {[%clk 0:02:44]} 15. Ng3 {[%clk 0:01:01]}  Qf6 {[%clk 0:02:43]} 16. dxe5 {[%clk 0:00:56]}  dxe5 {[%clk 0:02:42]} 17. Qb4 {[%clk 0:00:52]}  Nxh3+ {[%clk 0:02:32]} 18. Kf1 {[%clk 0:00:43]}  Bg4 {[%clk 0:02:20]} 19. Rd6 {[%clk 0:00:34]}  Qf4 {[%clk 0:02:15]} 20. Ne2 {[%clk 0:00:21]}  Qh6 {[%clk 0:02:07]} 21. Qxb7 {[%clk 0:00:19]}  Rf8 {[%clk 0:02:04]} 22. Rd7 {[%clk 0:00:17]}  Bxd7 {[%clk 0:01:58]} 23. Qxd7 {[%clk 0:00:16]}  Nhf4 {[%clk 0:01:57]} 24. Ng3 {[%clk 0:00:16]}  Rac8 {[%clk 0:01:52]} 25. Kg1 {[%clk 0:00:16]}  Nh4 {[%clk 0:01:48]} 26. Bxf7+ {[%clk 0:00:15]}  Kh8 {[%clk 0:01:47]} 27. Nxh4 {[%clk 0:00:16]}  Qxh4 {[%clk 0:01:42]} 28. Be6 {[%clk 0:00:16]}  Rfd8 {[%clk 0:01:25]} 29. Qf7 {[%clk 0:00:15]}  Rf8 {[%clk 0:01:19]} 30. Qd7 {[%clk 0:00:15]}  Rcd8 {[%clk 0:01:14]} 31. Qxc6 {[%clk 0:00:14]}  Rf6 {[%clk 0:01:14]} 32. Nf5 {[%clk 0:00:10]}  Qg5 {[%clk 0:01:00]} 33. g3 {[%clk 0:00:08]}  Rxe6 {[%clk 0:01:00]} 34. Qc7 {[%clk 0:00:08]}  Ree8 {[%clk 0:00:54]} 35. Qxa7 {[%clk 0:00:07]}  Ne6 {[%clk 0:00:46]} 36. a5 {[%clk 0:00:07]}  Nd4 {[%clk 0:00:45]} 37. Kg2 {[%clk 0:00:05]}  Nxf5 {[%clk 0:00:43]} 38. exf5 {[%clk 0:00:06]}  Qxf5 {[%clk 0:00:44]} 39. a6 {[%clk 0:00:05]}  e4 {[%clk 0:00:42]} 40. Re3 {[%clk 0:00:05]}  Rf8 {[%clk 0:00:35]} 41. Ra3 {[%clk 0:00:04]}  Qf3+ {[%clk 0:00:34]} 42. Rxf3 {[%clk 0:00:03]}  exf3+ {[%clk 0:00:32]} 43. Kh3 {[%clk 0:00:03]}  Rd6 {[%clk 0:00:30]} 44. Qc5 {[%clk 0:00:03]}  Rh6+ {[%clk 0:00:29]} 45. Kg4 {[%clk 0:00:03]}  Rg6+ {[%clk 0:00:29]} 46. Kh4 {[%clk 0:00:03]}  Rgf6 {[%clk 0:00:16]} 47. a7 {[%clk 0:00:02]}  Ra8 {[%clk 0:00:12]} 48. g4 {[%clk 0:00:03]}  Rf7 {[%clk 0:00:11]} 49. Kg3 {[%clk 0:00:03]}  Rfxa7 {[%clk 0:00:11]} 50. Kxf3 {[%clk 0:00:03]}  h6 {[%clk 0:00:12]} 51. Kg2 {[%clk 0:00:03]}  Rf7 {[%clk 0:00:12]} 52. b4 {[%clk 0:00:03]}  Raf8 {[%clk 0:00:12]} 53. b5 {[%clk 0:00:03]}  Rb8 {[%clk 0:00:12]} 54. b6 {[%clk 0:00:03]}  Rfb7 {[%clk 0:00:12]} 55. Qd4 {[%clk 0:00:02]}  Rxb6 {[%clk 0:00:13]} 56. g5 {[%clk 0:00:02]}  Rg6 {[%clk 0:00:11]} 57. f4 {[%clk 0:00:01]}  Rc8 {[%clk 0:00:11]} 58. Qe4 {[%clk 0:00:01]}  Rgc6 {[%clk 0:00:10]} 0-1


[Site "https://www.chess.com"]

[Event "Titled Tuesday Blitz February 14 Early 2023"]
[White "Buscar, Michael"]
[Black "Ardila, Oscar Humberto"]
[WhiteFideId "2603616"]
[BlackFideId "4404742"]
[WhiteElo "2041"]
[BlackElo "1982"]
[Result "0-1"]
[Round "08"]
[TimeControl "180+2"]
[Date "2023.02.14"]
[WhiteClock "0:00:01"]
[BlackClock "0:00:02"]

1. e4 {[%clk 0:02:55]}  e5 {[%clk 0:02:59]} 2. Nf3 {[%clk 0:02:55]}  Nf6 {[%clk 0:02:59]} 3. d4 {[%clk 0:02:53]}  Nxe4 {[%clk 0:02:58]} 4. dxe5 {[%clk 0:02:51]}  d5 {[%clk 0:02:58]} 5. Bd3 {[%clk 0:02:51]}  Nc5 {[%clk 0:02:58]} 6. Be2 {[%clk 0:02:46]}  Be7 {[%clk 0:02:57]} 7. O-O {[%clk 0:02:45]}  O-O {[%clk 0:02:56]} 8. c3 {[%clk 0:02:44]}  Bf5 {[%clk 0:02:55]} 9. Na3 {[%clk 0:02:42]}  c6 {[%clk 0:02:50]} 10. Nc2 {[%clk 0:02:40]}  Nbd7 {[%clk 0:02:44]} 11. Ncd4 {[%clk 0:02:39]}  Bg6 {[%clk 0:02:43]} 12. Bf4 {[%clk 0:02:32]}  Ne6 {[%clk 0:02:41]} 13. Be3 {[%clk 0:02:27]}  Qc7 {[%clk 0:02:39]} 14. c4 {[%clk 0:02:04]}  Nxe5 {[%clk 0:02:31]} 15. cxd5 {[%clk 0:02:02]}  cxd5 {[%clk 0:02:23]} 16. Nb5 {[%clk 0:02:00]}  Nxf3+ {[%clk 0:02:15]} 17. Bxf3 {[%clk 0:01:59]}  Qe5 {[%clk 0:02:12]} 18. Qxd5 {[%clk 0:01:58]}  Bf6 {[%clk 0:01:55]} 19. Nxa7 {[%clk 0:01:30]}  Qxb2 {[%clk 0:01:45]} 20. Rad1 {[%clk 0:01:21]}  Rfd8 {[%clk 0:01:40]} 21. Qxb7 {[%clk 0:01:19]}  Rdb8 {[%clk 0:01:34]} 22. Qxa8 {[%clk 0:01:14]}  Rxa8 {[%clk 0:01:33]} 23. Bxa8 {[%clk 0:01:14]}  Qxa2 {[%clk 0:01:31]} 24. Bf3 {[%clk 0:01:08]}  h5 {[%clk 0:01:29]} 25. Nc6 {[%clk 0:01:03]}  Bg5 {[%clk 0:01:15]} 26. Bxg5 {[%clk 0:00:26]}  Nxg5 {[%clk 0:01:12]} 27. Ne7+ {[%clk 0:00:25]}  Kh7 {[%clk 0:01:10]} 28. Bd5 {[%clk 0:00:25]}  Qa7 {[%clk 0:01:02]} 29. Nxg6 {[%clk 0:00:23]}  fxg6 {[%clk 0:01:01]} 30. g3 {[%clk 0:00:20]}  Kh6 {[%clk 0:00:48]} 31. Bg2 {[%clk 0:00:20]}  h4 {[%clk 0:00:47]} 32. gxh4 {[%clk 0:00:17]}  Nh7 {[%clk 0:00:46]} 33. Rd3 {[%clk 0:00:16]}  Qa4 {[%clk 0:00:45]} 34. Rfd1 {[%clk 0:00:12]}  Nf6 {[%clk 0:00:45]} 35. Rd4 {[%clk 0:00:11]}  Qc2 {[%clk 0:00:43]} 36. Bf3 {[%clk 0:00:11]}  Qc7 {[%clk 0:00:42]} 37. Kg2 {[%clk 0:00:11]}  Qe5 {[%clk 0:00:41]} 38. R1d2 {[%clk 0:00:11]}  Qf5 {[%clk 0:00:41]} 39. Rd8 {[%clk 0:00:10]}  Kh7 {[%clk 0:00:33]} 40. R8d6 {[%clk 0:00:08]}  Qf4 {[%clk 0:00:32]} 41. R6d4 {[%clk 0:00:07]}  Qe5 {[%clk 0:00:30]} 42. R4d3 {[%clk 0:00:05]}  Qf5 {[%clk 0:00:28]} 43. Rd4 {[%clk 0:00:05]}  Qe5 {[%clk 0:00:27]} 44. R4d3 {[%clk 0:00:05]}  Qc7 {[%clk 0:00:25]} 45. Rd4 {[%clk 0:00:05]}  Kh6 {[%clk 0:00:23]} 46. Rd8 {[%clk 0:00:05]}  Kh7 {[%clk 0:00:21]} 47. R8d4 {[%clk 0:00:05]}  Qa5 {[%clk 0:00:19]} 48. Re2 {[%clk 0:00:04]}  Qf5 {[%clk 0:00:18]} 49. Red2 {[%clk 0:00:03]}  Qc8 {[%clk 0:00:17]} 50. Rd8 {[%clk 0:00:03]}  Qc4 {[%clk 0:00:16]} 51. R8d4 {[%clk 0:00:04]}  Qb5 {[%clk 0:00:15]} 52. Rd1 {[%clk 0:00:03]}  Qb8 {[%clk 0:00:14]} 53. R1d2 {[%clk 0:00:04]}  Qa7 {[%clk 0:00:14]} 54. Rd8 {[%clk 0:00:04]}  Qa4 {[%clk 0:00:13]} 55. R8d4 {[%clk 0:00:04]}  Qb3 {[%clk 0:00:12]} 56. R4d3 {[%clk 0:00:03]}  Qb1 {[%clk 0:00:11]} 57. Rd4 {[%clk 0:00:04]}  Qb6 {[%clk 0:00:08]} 58. Rd6 {[%clk 0:00:04]}  Qc5 {[%clk 0:00:08]} 59. R6d4 {[%clk 0:00:04]}  Qf5 {[%clk 0:00:07]} 60. Rd8 {[%clk 0:00:04]}  Qf4 {[%clk 0:00:07]} 61. R8d4 {[%clk 0:00:04]}  Qf5 {[%clk 0:00:07]} 62. Re2 {[%clk 0:00:03]}  Qc8 {[%clk 0:00:06]} 63. Re7 {[%clk 0:00:02]}  Qf5 {[%clk 0:00:05]} 64. Re3 {[%clk 0:00:01]}  Qc5 {[%clk 0:00:05]} 65. Rf4 {[%clk 0:00:01]}  Qc7 {[%clk 0:00:03]} 66. Rd4 {[%clk 0:00:01]}  Qc5 {[%clk 0:00:03]} 67. Ra4 {[%clk 0:00:01]}  Qc7 {[%clk 0:00:02]} 68. Rb4 {[%clk 0:00:01]}  Qd6 {[%clk 0:00:02]} 69. Rb7 {[%clk 0:00:01]}  Qf4 {[%clk 0:00:02]} 0-1


[Site "https://www.chess.com"]

[Event "Titled Tuesday Blitz February 14 Early 2023"]
[White "lisjakzlatko1"]
[Black "Dong, Khanh Linh"]
[BlackFideId "12403040"]
[WhiteElo "2220"]
[BlackElo "1900"]
[Result "1-0"]
[Round "08"]
[TimeControl "180+2"]
[Date "2023.02.14"]
[WhiteClock "0:00:27"]
[BlackClock "0:00:05"]

1. e4 {[%clk 0:03:00]}  c5 {[%clk 0:02:55]} 2. b4 {[%clk 0:03:00]}  b6 {[%clk 0:02:51]} 3. bxc5 {[%clk 0:02:59]}  bxc5 {[%clk 0:02:51]} 4. Bc4 {[%clk 0:02:49]}  Bb7 {[%clk 0:02:46]} 5. Qe2 {[%clk 0:02:46]}  Nf6 {[%clk 0:02:42]} 6. Nc3 {[%clk 0:02:46]}  g6 {[%clk 0:02:29]} 7. Rb1 {[%clk 0:02:45]}  Bc6 {[%clk 0:02:26]} 8. Nf3 {[%clk 0:02:45]}  Bg7 {[%clk 0:02:21]} 9. e5 {[%clk 0:02:27]}  Nh5 {[%clk 0:02:12]} 10. d3 {[%clk 0:02:16]}  Qa5 {[%clk 0:02:11]} 11. Bd2 {[%clk 0:02:13]}  Nf4 {[%clk 0:01:43]} 12. Bxf4 {[%clk 0:02:02]}  Qxc3+ {[%clk 0:01:42]} 13. Bd2 {[%clk 0:02:01]}  Qxc2 {[%clk 0:01:36]} 14. O-O {[%clk 0:02:01]}  Qa4 {[%clk 0:01:22]} 15. d4 {[%clk 0:01:43]}  cxd4 {[%clk 0:01:00]} 16. Nxd4 {[%clk 0:01:38]}  O-O {[%clk 0:00:57]} 17. Rfc1 {[%clk 0:01:24]}  Na6 {[%clk 0:00:14]} 18. Nxc6 {[%clk 0:01:16]}  dxc6 {[%clk 0:00:10]} 19. Bxa6 {[%clk 0:01:14]}  Qxa2 {[%clk 0:00:09]} 20. Bc4 {[%clk 0:00:43]}  Qa3 {[%clk 0:00:09]} 21. e6 {[%clk 0:00:41]}  f5 {[%clk 0:00:08]} 22. Bb4 {[%clk 0:00:34]}  Qa4 {[%clk 0:00:08]} 23. Bxe7 {[%clk 0:00:33]}  Rfe8 {[%clk 0:00:09]} 24. Bd6 {[%clk 0:00:29]}  Rad8 {[%clk 0:00:08]} 25. e7+ {[%clk 0:00:28]}  Qxc4 {[%clk 0:00:05]} 26. Qxc4+ {[%clk 0:00:27]} 1-0


[Site "https://www.chess.com"]

[Event "Titled Tuesday Blitz February 14 Early 2023"]
[White "Skaric, Djuro"]
[Black "Cramling Bellon, Anna"]
[WhiteFideId "934569"]
[BlackFideId "32009232"]
[WhiteElo "2334"]
[BlackElo "2043"]
[Result "1-0"]
[Round "08"]
[TimeControl "180+2"]
[Date "2023.02.14"]
[WhiteClock "0:02:17"]
[BlackClock "0:00:05"]

1. g3 {[%clk 0:03:00]}  d5 {[%clk 0:02:58]} 2. Bg2 {[%clk 0:03:00]}  c5 {[%clk 0:02:57]} 3. d3 {[%clk 0:03:00]}  Nc6 {[%clk 0:02:57]} 4. Nf3 {[%clk 0:03:01]}  e5 {[%clk 0:02:57]} 5. O-O {[%clk 0:03:01]}  Nf6 {[%clk 0:02:57]} 6. Nc3 {[%clk 0:03:01]}  Be7 {[%clk 0:02:57]} 7. e4 {[%clk 0:03:02]}  d4 {[%clk 0:02:57]} 8. Ne2 {[%clk 0:03:02]}  O-O {[%clk 0:02:54]} 9. h3 {[%clk 0:03:02]}  h6 {[%clk 0:02:52]} 10. Ne1 {[%clk 0:03:03]}  Be6 {[%clk 0:02:53]} 11. f4 {[%clk 0:03:04]}  exf4 {[%clk 0:02:47]} 12. gxf4 {[%clk 0:03:03]}  Bc8 {[%clk 0:02:21]} 13. Ng3 {[%clk 0:03:00]}  Qc7 {[%clk 0:02:13]} 14. e5 {[%clk 0:02:58]}  Ne8 {[%clk 0:02:00]} 15. Qh5 {[%clk 0:02:55]}  Kh7 {[%clk 0:01:30]} 16. Be4+ {[%clk 0:02:54]}  g6 {[%clk 0:01:29]} 17. Kh2 {[%clk 0:02:48]}  Kg7 {[%clk 0:01:20]} 18. Qe2 {[%clk 0:02:36]}  Qd7 {[%clk 0:01:17]} 19. Qg2 {[%clk 0:02:33]}  Bh4 {[%clk 0:01:12]} 20. Rg1 {[%clk 0:02:32]}  Nc7 {[%clk 0:01:03]} 21. Nf5+ {[%clk 0:02:32]}  Kh7 {[%clk 0:00:52]} 22. Nxh4 {[%clk 0:02:32]}  Ne7 {[%clk 0:00:15]} 23. Bd2 {[%clk 0:02:30]}  Ncd5 {[%clk 0:00:13]} 24. Nef3 {[%clk 0:02:29]}  Ne3 {[%clk 0:00:09]} 25. Bxe3 {[%clk 0:02:27]}  dxe3 {[%clk 0:00:10]} 26. c3 {[%clk 0:02:27]}  Nd5 {[%clk 0:00:06]} 27. Bxd5 {[%clk 0:02:26]}  Qxd5 {[%clk 0:00:07]} 28. Ng5+ {[%clk 0:02:26]}  hxg5 {[%clk 0:00:06]} 29. Qxd5 {[%clk 0:02:27]}  gxh4 {[%clk 0:00:05]} 30. Qxc5 {[%clk 0:02:17]} 1-0


[Site "https://www.chess.com"]

[Event "Titled Tuesday Blitz February 14 Early 2023"]
[White "Wilson, Elvin"]
[Black "Sabar, Ethmane Daouda"]
[WhiteFideId "2014874"]
[BlackFideId "19600097"]
[WhiteElo "2183"]
[BlackElo "2040"]
[Result "1-0"]
[Round "08"]
[TimeControl "180+2"]
[Date "2023.02.14"]
[WhiteClock "0:00:20"]
[BlackClock "0:00:03"]

1. c4 {[%clk 0:03:00]}  e5 {[%clk 0:02:59]} 2. Nc3 {[%clk 0:02:56]}  Nf6 {[%clk 0:02:59]} 3. g3 {[%clk 0:02:54]}  d5 {[%clk 0:02:59]} 4. cxd5 {[%clk 0:02:54]}  Nxd5 {[%clk 0:03:00]} 5. Bg2 {[%clk 0:02:54]}  Nxc3 {[%clk 0:03:00]} 6. bxc3 {[%clk 0:02:54]}  Nc6 {[%clk 0:03:01]} 7. d3 {[%clk 0:02:46]}  Be7 {[%clk 0:03:00]} 8. Nf3 {[%clk 0:02:46]}  O-O {[%clk 0:02:59]} 9. Rb1 {[%clk 0:02:46]}  Rb8 {[%clk 0:02:48]} 10. O-O {[%clk 0:02:39]}  f5 {[%clk 0:02:40]} 11. Nd2 {[%clk 0:02:23]}  Be6 {[%clk 0:02:35]} 12. Qa4 {[%clk 0:02:22]}  Bd5 {[%clk 0:02:24]} 13. Bxd5+ {[%clk 0:02:06]}  Qxd5 {[%clk 0:02:25]} 14. Qc4 {[%clk 0:02:05]}  Qxc4 {[%clk 0:02:14]} 15. Nxc4 {[%clk 0:02:05]}  f4 {[%clk 0:02:03]} 16. Nd2 {[%clk 0:01:59]}  b6 {[%clk 0:02:00]} 17. Kg2 {[%clk 0:01:53]}  Rbd8 {[%clk 0:01:59]} 18. a4 {[%clk 0:01:43]}  a5 {[%clk 0:01:57]} 19. Rb5 {[%clk 0:01:37]}  h6 {[%clk 0:01:29]} 20. Nf3 {[%clk 0:01:36]}  fxg3 {[%clk 0:01:24]} 21. hxg3 {[%clk 0:01:34]}  Bf6 {[%clk 0:01:17]} 22. Ba3 {[%clk 0:01:30]}  Rfe8 {[%clk 0:01:16]} 23. Nd2 {[%clk 0:01:30]}  g6 {[%clk 0:01:05]} 24. Ne4 {[%clk 0:01:29]}  Bg7 {[%clk 0:01:05]} 25. Rh1 {[%clk 0:01:14]}  Re6 {[%clk 0:01:02]} 26. Bc1 {[%clk 0:01:12]}  g5 {[%clk 0:00:56]} 27. Be3 {[%clk 0:01:09]}  Ne7 {[%clk 0:00:54]} 28. Rhb1 {[%clk 0:00:58]}  Nd5 {[%clk 0:00:50]} 29. Bd2 {[%clk 0:00:56]}  g4 {[%clk 0:00:42]} 30. c4 {[%clk 0:00:55]}  Nf6 {[%clk 0:00:38]} 31. Nxf6+ {[%clk 0:00:47]}  Rxf6 {[%clk 0:00:39]} 32. Be3 {[%clk 0:00:46]}  Re6 {[%clk 0:00:32]} 33. c5 {[%clk 0:00:46]}  bxc5 {[%clk 0:00:28]} 34. Rxc5 {[%clk 0:00:46]}  e4 {[%clk 0:00:25]} 35. dxe4 {[%clk 0:00:37]}  Rxe4 {[%clk 0:00:25]} 36. Rxc7 {[%clk 0:00:38]}  Be5 {[%clk 0:00:17]} 37. Re7 {[%clk 0:00:35]}  Kf8 {[%clk 0:00:09]} 38. Rbb7 {[%clk 0:00:29]}  Rxe3 {[%clk 0:00:05]} 39. fxe3 {[%clk 0:00:25]}  Bc3 {[%clk 0:00:03]} 40. Re4 {[%clk 0:00:20]} 1-0


[Site "https://www.chess.com"]

[Event "Titled Tuesday Blitz February 14 Early 2023"]
[White "Rios Escobar, Adan"]
[Black "Kohler, Aran"]
[WhiteFideId "3403645"]
[BlackFideId "1002856"]
[WhiteElo "2234"]
[BlackElo "2010"]
[Result "0-1"]
[Round "08"]
[TimeControl "180+2"]
[Date "2023.02.14"]
[WhiteClock "0:00:03"]
[BlackClock "0:00:27"]

1. d4 {[%clk 0:03:00]}  d5 {[%clk 0:02:59]} 2. g3 {[%clk 0:03:00]}  c6 {[%clk 0:02:59]} 3. c4 {[%clk 0:02:59]}  Nf6 {[%clk 0:02:57]} 4. Nf3 {[%clk 0:03:00]}  dxc4 {[%clk 0:02:55]} 5. Bg2 {[%clk 0:03:00]}  Nbd7 {[%clk 0:02:55]} 6. O-O {[%clk 0:03:00]}  e6 {[%clk 0:02:55]} 7. a4 {[%clk 0:02:47]}  Rb8 {[%clk 0:02:50]} 8. Bf4 {[%clk 0:02:37]}  Ra8 {[%clk 0:02:50]} 9. Na3 {[%clk 0:02:37]}  Nd5 {[%clk 0:02:50]} 10. Nxc4 {[%clk 0:02:34]}  Nxf4 {[%clk 0:02:48]} 11. gxf4 {[%clk 0:02:35]}  Be7 {[%clk 0:02:46]} 12. Qd3 {[%clk 0:02:30]}  O-O {[%clk 0:02:45]} 13. Rfd1 {[%clk 0:02:29]}  Rb8 {[%clk 0:02:37]} 14. Rac1 {[%clk 0:02:26]}  f6 {[%clk 0:02:19]} 15. f5 {[%clk 0:02:10]}  Nb6 {[%clk 0:02:17]} 16. fxe6 {[%clk 0:02:03]}  Bxe6 {[%clk 0:02:16]} 17. b3 {[%clk 0:01:55]}  Nd5 {[%clk 0:02:10]} 18. e3 {[%clk 0:01:51]}  Qd7 {[%clk 0:01:59]} 19. Nh4 {[%clk 0:01:47]}  g5 {[%clk 0:01:37]} 20. Nf3 {[%clk 0:01:43]}  Bf5 {[%clk 0:01:33]} 21. Qe2 {[%clk 0:01:30]}  Bb4 {[%clk 0:01:25]} 22. Qb2 {[%clk 0:01:15]}  Rbe8 {[%clk 0:01:21]} 23. Nfd2 {[%clk 0:01:07]}  Bg6 {[%clk 0:01:19]} 24. Nf1 {[%clk 0:01:03]}  Qe7 {[%clk 0:01:16]} 25. Qa1 {[%clk 0:00:57]}  Kg7 {[%clk 0:01:13]} 26. Ng3 {[%clk 0:00:55]}  h5 {[%clk 0:01:07]} 27. Nb2 {[%clk 0:00:41]}  h4 {[%clk 0:00:57]} 28. Nf1 {[%clk 0:00:38]}  Nc3 {[%clk 0:00:53]} 29. Rd2 {[%clk 0:00:21]}  Ne4 {[%clk 0:00:39]} 30. Rdc2 {[%clk 0:00:19]}  g4 {[%clk 0:00:37]} 31. Nd3 {[%clk 0:00:18]}  Bd6 {[%clk 0:00:35]} 32. Qb2 {[%clk 0:00:09]}  h3 {[%clk 0:00:34]} 33. Bh1 {[%clk 0:00:08]}  Ng5 {[%clk 0:00:33]} 34. Ng3 {[%clk 0:00:07]}  Bxd3 {[%clk 0:00:32]} 35. Rd2 {[%clk 0:00:07]}  Bg6 {[%clk 0:00:32]} 36. Re1 {[%clk 0:00:06]}  Bxg3 {[%clk 0:00:32]} 37. hxg3 {[%clk 0:00:05]}  Nf3+ {[%clk 0:00:32]} 38. Bxf3 {[%clk 0:00:05]}  gxf3 {[%clk 0:00:33]} 39. d5 {[%clk 0:00:04]}  cxd5 {[%clk 0:00:29]} 40. Rxd5 {[%clk 0:00:04]}  h2+ {[%clk 0:00:30]} 41. Kh1 {[%clk 0:00:03]}  Qe6 {[%clk 0:00:27]} 0-1


[Site "https://www.chess.com"]

[Event "Titled Tuesday Blitz February 14 Early 2023"]
[White "Broca Jimenez, Fernando"]
[Black "Levitan, Caleb Levi"]
[WhiteFideId "5104742"]
[BlackFideId "14332620"]
[WhiteElo "2075"]
[BlackElo "2129"]
[Result "0-1"]
[Round "08"]
[TimeControl "180+2"]
[Date "2023.02.14"]
[WhiteClock "0:00:16"]
[BlackClock "0:00:05"]

1. e4 {[%clk 0:02:41]}  c5 {[%clk 0:02:58]} 2. c3 {[%clk 0:02:39]}  Nf6 {[%clk 0:02:56]} 3. e5 {[%clk 0:02:39]}  Nd5 {[%clk 0:02:55]} 4. d4 {[%clk 0:02:40]}  cxd4 {[%clk 0:02:51]} 5. Nf3 {[%clk 0:02:41]}  Nc6 {[%clk 0:02:48]} 6. Bc4 {[%clk 0:02:38]}  Nb6 {[%clk 0:02:37]} 7. Bb3 {[%clk 0:02:37]}  d6 {[%clk 0:02:19]} 8. exd6 {[%clk 0:02:35]}  e6 {[%clk 0:02:12]} 9. cxd4 {[%clk 0:02:30]}  Bxd6 {[%clk 0:02:11]} 10. Nc3 {[%clk 0:02:30]}  O-O {[%clk 0:02:08]} 11. O-O {[%clk 0:02:29]}  e5 {[%clk 0:01:50]} 12. Nb5 {[%clk 0:02:06]}  Nxd4 {[%clk 0:01:39]} 13. Nfxd4 {[%clk 0:02:02]}  exd4 {[%clk 0:01:38]} 14. Qxd4 {[%clk 0:02:00]}  Bb8 {[%clk 0:01:32]} 15. Qxd8 {[%clk 0:01:55]}  Rxd8 {[%clk 0:01:31]} 16. Bg5 {[%clk 0:01:55]}  Re8 {[%clk 0:01:28]} 17. Rfe1 {[%clk 0:01:35]}  Bd7 {[%clk 0:01:27]} 18. Nc3 {[%clk 0:01:28]}  Be5 {[%clk 0:01:18]} 19. Rad1 {[%clk 0:01:24]}  Bc6 {[%clk 0:01:16]} 20. Be3 {[%clk 0:01:05]}  Nd7 {[%clk 0:01:08]} 21. Rd2 {[%clk 0:00:56]}  Nf6 {[%clk 0:01:04]} 22. h3 {[%clk 0:00:49]}  a6 {[%clk 0:00:54]} 23. Red1 {[%clk 0:00:48]}  g6 {[%clk 0:00:28]} 24. Bd4 {[%clk 0:00:38]}  Bxd4 {[%clk 0:00:24]} 25. Rxd4 {[%clk 0:00:39]}  Re7 {[%clk 0:00:20]} 26. Nd5 {[%clk 0:00:24]}  Nxd5 {[%clk 0:00:15]} 27. Bxd5 {[%clk 0:00:25]}  Bxd5 {[%clk 0:00:15]} 28. Rxd5 {[%clk 0:00:25]}  Re2 {[%clk 0:00:15]} 29. R1d2 {[%clk 0:00:22]}  Rxd2 {[%clk 0:00:15]} 30. Rxd2 {[%clk 0:00:22]}  Rc8 {[%clk 0:00:14]} 31. Kh2 {[%clk 0:00:21]}  Rc7 {[%clk 0:00:12]} 32. f4 {[%clk 0:00:20]}  Kg7 {[%clk 0:00:12]} 33. g3 {[%clk 0:00:20]}  Kf6 {[%clk 0:00:11]} 34. Kg2 {[%clk 0:00:20]}  Ke6 {[%clk 0:00:10]} 35. Kf3 {[%clk 0:00:21]}  f5 {[%clk 0:00:09]} 36. g4 {[%clk 0:00:21]}  h5 {[%clk 0:00:08]} 37. g5 {[%clk 0:00:18]}  Rc5 {[%clk 0:00:06]} 38. a3 {[%clk 0:00:17]}  Rb5 {[%clk 0:00:05]} 39. b4 {[%clk 0:00:16]}  Rd5 {[%clk 0:00:06]} 40. Rd3 {[%clk 0:00:16]}  Rxd3+ {[%clk 0:00:05]} 0-1


[Site "https://www.chess.com"]